bitfinex-derivatives/quotes_ETHF0:USTF0_20241230
["timestamp","ask_amount","ask_price","bid_price","bid_amount"]
[1735548550043,1.5172,3419.8,3419.3,3.2078]
[1735548550238,0.29298,3419.5,3419.3,3.50079]
[1735548550444,0.7313,3419.4,3419.3,3.50079]
[1735548551349,1.5172,3419.8,3419.3,3.2078]
[1735548551545,1.5172,3419.8,3419.7,0.29296]
[1735548552344,3.2078,3419.8,3419.7,0.29296]
[1735548556242,0.4544574,3420.0,3419.9,0.29294]
[1735548556639,0.4544574,3420.0,3419.8,0.29295]
[1735548557149,3.2078,3419.9,3419.8,0.29295]
[1735548558738,3.66273845,3419.9,3419.7,0.29296]
[1735548558942,3.2078,3419.9,3419.7,0.29296]
[1735548559149,3.66273845,3419.9,3419.7,0.29296]
[1735548560052,3.2078,3419.9,3419.7,0.29296]
[1735548560455,3.66273845,3419.9,3419.7,0.29296]
[1735548560654,3.66317893,3419.9,3419.7,0.29296]
[1735548561254,3.66317893,3419.9,3419.1,3.2078]
[1735548561255,6.00071487,3419.9,3419.1,3.2078]
[1735548561448,0.45537893,3419.5,3419.1,3.2078]
[1735548561656,2.63079,3419.4,3419.1,3.2078]
[1735548561950,0.45537893,3419.3,3419.1,3.2078]
[1735548562249,0.74837893,3419.3,3419.1,3.2078]
[1735548562450,0.74837893,3419.2,3419.1,3.2078]
[1735548562655,3.2078,3419.3,3418.8,6.89630092]
[1735548562857,0.74867578,3419.0,3418.8,6.89630092]
[1735548563050,0.45565578,3419.0,3418.8,6.89630092]
[1735548563251,0.7358,3418.9,3418.8,6.89630092]
[1735548563453,0.7358,3418.9,3418.6,0.29305]
[1735548563656,0.7909,3418.8,3418.6,0.29305]
[1735548563850,1.5275,3418.8,3418.6,0.29305]
[1735548564355,1.5275,3418.8,3418.5,5.1128]
[1735548564356,1.5275,3418.8,3418.5,0.29306]
[1735548564556,0.45574546,3418.7,3418.5,0.29306]
[1735548564750,0.45574546,3418.7,3418.3,1.9093]
[1735548564952,1.98324546,3418.8,3418.6,0.29305]
[1735548565151,1.98324546,3418.8,3418.3,1.9093]
[1735548565355,0.45574546,3418.7,3418.4,0.29306]
[1735548565658,0.45574546,3418.7,3418.6,0.29305]
[1735548565850,0.45522849,3418.7,3418.6,0.29305]
[1735548566246,1.98272849,3418.8,3418.6,0.29305]
[1735548566449,1.5275,3418.8,3418.3,0.7443]
[1735548566650,1.5275,3418.8,3418.7,0.29305]
[1735548567657,2.7432898,3419.1,3418.4,2.33753594]
[1735548567857,2.28819817,3419.1,3419.0,0.29302]
[1735548568356,6.63150099,3419.3,3419.1,0.29301]
[1735548568357,2.28819817,3419.2,3419.1,0.29301]
[1735548568956,3.05269817,3419.2,3419.1,0.29301]
[1735548569162,3.5077898,3419.2,3419.1,0.29301]
[1735548569465,3.05269817,3419.2,3419.1,0.29301]
[1735548569761,0.7645,3419.2,3419.1,0.29301]
[1735548570751,0.7645,3419.2,3418.9,0.29302]
[1735548570956,0.7645,3419.2,3418.1,10.10410092]
[1735548570957,2.33753594,3419.0,3418.1,10.10410092]
[1735548571158,3.2078,3418.9,3418.8,0.29304]
[1735548574964,2.28819817,3419.2,3419.1,0.29302]
[1735548575161,6.63150099,3419.3,3419.2,0.29301]
[1735548576662,3.2078,3419.3,3419.2,0.29301]
[1735548577262,0.29303,3419.2,3418.4,8.06130092]
[1735548577463,3.2078,3418.9,3418.5,0.8125]
[1735548577654,3.2078,3418.9,3418.8,0.29306]
[1735548590964,3.2078,3418.9,3418.7,0.29307]
[1735548591171,0.7146,3418.8,3418.7,0.29307]
[1735548591470,0.7146,3418.8,3418.6,0.29308]
[1735548591666,0.687,3418.7,3418.6,0.29308]
[1735548593070,2.97714632,3418.7,3418.6,0.29308]
[1735548594070,3.27022632,3418.7,3418.5,0.29309]
[1735548596171,3.27022632,3418.7,3418.1,3.2078]
[1735548596172,2.97714632,3418.7,3418.1,3.2078]
[1735548596369,0.2931,3418.5,3418.3,0.2931]
[1735548596572,0.7823,3418.4,3418.3,0.2931]
[1735548599176,0.7823,3418.4,3418.1,3.2078]
[1735548599481,1.0754,3418.4,3418.2,0.29311]
[1735548599682,3.2078,3418.3,3418.2,0.29311]
[1735548603774,0.29312,3418.2,3418.0,0.29313]
[1735548603981,1.4433,3418.2,3417.8,4.6002191]
[1735548604188,3.2078,3418.1,3417.9,0.29314]
[1735548604487,3.2078,3418.1,3418.0,0.29313]
[1735548604991,5.49794632,3418.1,3418.0,0.29313]
[1735548606284,3.2078,3418.1,3418.0,0.29313]
[1735548607789,3.9654,3418.1,3418.0,0.29313]
[1735548607983,4.25853,3418.1,3417.7,4.6002191]
[1735548608190,0.7158,3418.0,3417.8,0.29315]
[1735548608390,1.00893,3418.0,3417.8,0.29315]
[1735548608783,0.7158,3418.0,3417.8,0.29315]
[1735548610393,1.00894,3418.0,3417.8,0.29315]
[1735548610792,0.7158,3418.0,3417.8,0.29315]
[1735548611593,0.7158,3418.0,3417.9,0.29314]
[1735548611895,0.7158,3418.0,3417.8,0.29314]
[1735548613391,0.7158,3418.0,3417.6,6.93775504]
[1735548613590,6.25554632,3418.1,3418.0,0.29313]
[1735548613591,2.29014632,3418.1,3418.0,0.29313]
[1735548614000,2.29014632,3418.1,3418.0,2.46823]
[1735548614391,5.49794632,3418.5,3418.4,0.2931]
[1735548615393,3.2078,3418.5,3418.4,0.2931]
[1735548617793,3.2078,3418.5,3418.2,3.50253594]
[1735548617996,3.2078,3418.5,3418.2,1.165]
[1735548618193,0.7146,3418.4,3418.1,4.6002191]
[1735548618398,0.29312,3418.2,3418.0,7.64060092]
[1735548618898,1.4412,3418.1,3418.0,7.64060092]
[1735548619701,1.4412,3418.1,3418.0,1.03743]
[1735548621306,2.29014632,3418.2,3418.1,0.29313]
[1735548621495,2.29014632,3418.2,3418.1,2.63066594]
[1735548622302,2.29014632,3418.2,3418.1,0.29313]
[1735548622502,0.6911,3418.3,3418.2,0.29312]
[1735548627210,0.98422,3418.3,3418.0,0.29313]
[1735548627408,3.2078,3418.1,3418.0,0.29313]
[1735548627712,0.29313,3418.0,3417.9,4.60294268]
[1735548629311,2.58327632,3418.0,3417.7,0.29316]
[1735548629905,2.29014632,3418.0,3417.8,0.29315]
[1735548630205,2.29014632,3418.0,3417.9,0.29314]
[1735548631613,3.2078,3418.1,3417.9,2.33753594]
[1735548631811,3.2078,3418.1,3418.0,0.29313]
[1735548633215,3.2078,3418.1,3418.0,4.87943124]
[1735548635906,3.2078,3418.1,3418.0,9.48713584]
[1735548636112,3.2078,3418.1,3418.0,4.9008346]
[1735548638612,3.2078,3418.1,3418.0,4.88221023]
[1735548639813,5.49794632,3418.1,3418.0,0.29313]
[1735548641014,5.49794632,3418.1,3418.0,4.90314189]
[1735548642621,3.2078,3418.1,3418.0,4.88282722]
[1735548643815,3.2078,3418.1,3418.0,11.77912814]
[1735548644714,3.2078,3418.1,3418.0,7.22036316]
[1735548646418,3.2078,3418.1,3418.0,16.41402922]
[1735548647821,3.2078,3418.1,3418.0,7.22036316]
[1735548650921,3.02684632,3418.4,3418.3,0.29311]
[1735548651321,6.23464632,3418.4,3418.3,0.29311]
[1735548651927,6.23464632,3418.4,3418.1,0.6877]
[1735548652224,6.52774632,3418.4,3418.3,4.60965899]
[1735548653321,8.10107886,3418.4,3418.2,0.29311]
[1735548653719,4.60017886,3418.4,3418.2,0.29311]
[1735548653929,7.80797886,3418.4,3418.3,0.29311]
[1735548655425,8.10108886,3418.4,3418.2,4.90276899]
[1735548655925,4.67738787,3418.4,3418.3,0.29311]
[1735548656625,4.38427787,3418.4,3418.3,0.29311]
[1735548658931,7.82650042,3418.4,3418.3,0.29311]
[1735548660435,3.9445,3418.4,3418.3,4.90276899]
[1735548661639,4.17892255,3418.4,3418.3,4.90276899]
[1735548662739,0.7367,3418.4,3418.3,4.90276899]
[1735548664443,4.17892255,3418.4,3418.3,4.90276899]
[1735548665530,3.44222255,3418.4,3418.3,4.90276899]
[1735548666937,2.29566067,3418.4,3418.3,17.34391451]
[1735548667136,2.13829191,3418.4,3418.3,17.34391451]
[1735548667441,1.52155192,3418.4,3418.3,17.34391451]
[1735548668038,3.44222255,3418.5,3418.3,17.05080451]
[1735548668235,3.44222255,3418.5,3418.4,0.2931]
[1735548668445,3.2078,3418.9,3418.8,0.29307]
[1735548668634,3.2078,3418.9,3418.8,1.45807]
[1735548669147,3.2078,3418.9,3418.8,2.18707]
[1735548669846,3.2078,3418.9,3418.8,6.77805009]
[1735548670845,3.2078,3418.9,3418.8,13.68532206]
[1735548671347,3.2078,3418.9,3418.8,14.43472206]
[1735548672046,3.2078,3418.9,3418.8,14.6666444]
[1735548673342,3.2078,3418.9,3418.8,13.5016444]
[1735548673548,4.6895,3419.5,3419.4,0.29301]
[1735548674652,4.6895,3419.5,3419.0,0.29305]
[1735548674853,4.6895,3419.5,3419.3,0.29302]
[1735548675244,4.6895,3419.5,3419.4,0.29301]
[1735548676349,4.6895,3419.5,3419.0,5.76389505]
[1735548676350,0.29303,3419.3,3419.0,4.89293505]
[1735548676544,3.2078,3419.1,3419.0,4.89294505]
[1735548677149,3.2078,3419.1,3419.0,4.59989505]
[1735548677753,3.2078,3419.1,3418.7,5.76389505]
[1735548678047,1.4692,3419.0,3418.9,0.29306]
[1735548679048,1.4692,3419.0,3418.8,0.29306]
[1735548679354,0.761,3418.9,3418.8,0.29306]
[1735548679553,0.761,3418.9,3418.6,4.59989505]
[1735548680043,0.29307,3418.8,3418.6,4.59989505]
[1735548680243,3.2078,3418.7,3418.5,4.59989505]
[1735548681043,0.29308,3418.6,3418.5,4.59989505]
[1735548681844,0.2931,3418.4,3418.1,4.89301505]
[1735548682045,1.4214,3418.3,3418.1,4.89301505]
[1735548682843,3.2078,3418.2,3418.1,4.89301505]
[1735548683046,3.2078,3418.2,3418.1,0.29312]
[1735548684147,3.2078,3418.2,3417.8,5.76389505]
[1735548684348,3.2078,3418.2,3418.1,0.29313]
[1735548684552,3.2078,3418.2,3417.8,5.76389505]
[1735548684553,3.2078,3418.2,3417.9,0.29313]
[1735548685150,3.2078,3418.2,3418.0,0.29313]
[1735548685654,3.2078,3418.2,3417.8,5.76389505]
[1735548685955,3.2078,3418.2,3418.1,0.29313]
[1735548686750,3.2078,3418.2,3418.0,0.29313]
[1735548687844,3.2078,3418.2,3418.1,0.29313]
[1735548688347,6.65002255,3418.6,3418.5,0.29309]
[1735548688546,6.65002255,3418.6,3418.5,2.63062594]
[1735548688742,3.44222255,3418.6,3418.5,2.63062594]
[1735548688949,2.29702255,3418.6,3418.5,2.63062594]
[1735548689241,1.66232255,3418.6,3418.5,5.83842594]
[1735548690352,0.7151,3419.3,3418.5,19.47697527]
[1735548690551,0.7151,3419.3,3419.1,0.29303]
[1735548690850,0.7151,3419.3,3419.2,0.29303]
[1735548691147,0.7151,3419.3,3418.8,2.33753594]
[1735548691351,1.00813,3419.3,3418.9,0.29306]
[1735548691749,3.2078,3419.0,3418.8,4.59892839]
[1735548691945,3.50085,3419.0,3418.8,4.59892839]
[1735548692150,1.4627,3418.9,3418.8,4.59892839]
[1735548692546,1.75577,3418.9,3418.5,6.05701839]
[1735548692856,3.2078,3418.6,3418.5,3.45412839]
[1735548693154,3.50088,3418.6,3418.5,3.45412839]
[1735548693748,3.2078,3418.6,3418.5,3.45412839]
[1735548694049,3.2078,3418.6,3418.3,0.2931]
[1735548694257,3.2078,3418.6,3418.5,0.29309]
[1735548694557,3.2078,3418.6,3418.2,2.33753594]
[1735548694854,3.2078,3418.6,3418.4,0.2931]
[1735548695052,3.2078,3418.6,3418.2,2.33753594]
[1735548695353,3.2078,3418.6,3418.5,0.29309]
[1735548700656,3.2078,3418.6,3417.9,10.40092853]
[1735548701055,0.29309,3418.5,3418.2,0.29311]
[1735548701258,0.29309,3418.5,3418.3,0.29311]
[1735548701454,0.713,3418.4,3418.3,0.29311]
[1735548705258,0.713,3418.4,3418.2,0.29311]
[1735548705463,0.713,3418.4,3418.3,0.29311]
[1735548709362,0.7036,3418.9,3418.3,0.29311]
[1735548709363,3.2078,3418.9,3418.8,0.29307]
[1735548710164,8.9290818,3419.3,3418.8,2.33753594]
[1735548710362,4.2264689,3419.1,3419.0,0.29305]
[1735548711166,4.2264689,3419.1,3419.0,0.98535]
[1735548711366,3.2078,3419.3,3419.2,0.29303]
[1735548711566,3.2078,3419.3,3419.2,1.45703]
[1735548713370,3.2078,3419.8,3419.7,0.29298]
[1735548728981,1.4445,3420.0,3419.7,2.33753594]
[1735548729172,1.4445,3420.0,3419.9,0.29297]
[1735548730567,0.7307,3420.0,3419.9,0.29297]
[1735548732274,3.2078,3420.2,3419.8,0.7339]
[1735548732476,0.6884,3420.4,3420.3,0.29294]
[1735548733181,3.2078,3420.6,3420.2,0.7308]
[1735548733378,3.2078,3420.6,3420.5,0.29292]
[1735548734875,3.50071,3420.6,3420.3,0.29293]
[1735548735180,0.6931,3420.5,3420.3,0.29293]
[1735548735479,1.4201,3420.4,3420.1,1.164]
[1735548735682,3.2078,3420.2,3420.1,1.45695]
[1735548735983,3.50075,3420.2,3419.8,0.29297]
[1735548736279,0.29296,3420.1,3419.8,0.29298]
[1735548736479,3.50075,3420.2,3419.8,0.29298]
[1735548736679,0.7127,3420.0,3419.8,0.29298]
[1735548736982,0.7127,3420.0,3419.9,0.29297]
[1735548739381,0.7127,3420.0,3419.8,0.29297]
[1735548739685,0.7127,3420.0,3419.9,0.29297]
[1735548742884,0.7127,3420.0,3419.7,1.164]
[1735548743384,1.00566,3420.0,3419.7,1.45698]
[1735548743883,1.00566,3420.0,3419.7,0.29298]
[1735548744484,0.7127,3420.0,3419.4,4.3718]
[1735548744682,0.29298,3419.9,3419.6,0.293]
[1735548744879,1.4475,3419.8,3419.5,0.29301]
[1735548745181,1.4475,3419.8,3419.4,3.2078]
[1735548745379,1.4475,3419.8,3419.5,0.293]
[1735548745580,1.4475,3419.8,3419.6,0.293]
[1735548745885,1.4475,3419.8,3419.7,0.29299]
[1735548747782,1.4475,3419.8,3419.6,0.293]
[1735548748680,1.4475,3419.8,3419.4,3.2078]
[1735548749079,1.4475,3419.8,3419.7,0.29299]
[1735548749778,1.4475,3419.8,3419.4,3.2078]
[1735548750079,1.4475,3419.8,3419.5,0.293]
[1735548750976,1.4475,3419.8,3419.4,3.2078]
[1735548750977,0.29299,3419.7,3419.4,3.50081]
[1735548751184,3.2078,3419.6,3418.9,6.89839259]
[1735548751480,0.29301,3419.5,3419.2,0.29303]
[1735548751688,0.7245,3419.5,3418.9,6.89839259]
[1735548751895,1.01751,3419.5,3419.2,0.29303]
[1735548752080,0.7245,3419.5,3418.8,4.3718]
[1735548752682,0.29302,3419.4,3418.8,4.3718]
[1735548752884,0.29302,3419.4,3419.1,0.29304]
[1735548753284,1.01751,3419.5,3418.9,0.29306]
[1735548753488,1.01751,3419.5,3419.2,0.29303]
[1735548753982,0.29302,3419.4,3419.1,0.29304]
[1735548754988,1.01751,3419.5,3419.2,0.29303]
[1735548755189,0.7245,3419.5,3419.3,0.29302]
[1735548755991,0.7245,3419.5,3419.4,0.29301]
[1735548760592,1.01751,3419.5,3419.3,0.29302]
[1735548761195,0.29301,3419.4,3419.2,0.29303]
[1735548761493,0.29302,3419.4,3419.2,0.29303]
[1735548761693,0.7245,3419.5,3418.8,11.99639259]
[1735548761996,1.01751,3419.5,3419.3,0.29302]
[1735548762191,0.7245,3419.5,3418.8,11.99639259]
[1735548762384,0.7245,3419.5,3419.4,0.29301]
[1735548762588,1.01751,3419.5,3419.3,0.29302]
[1735548765001,0.7245,3419.5,3419.3,0.29302]
[1735548767900,0.29301,3419.4,3419.2,0.29303]
[1735548768100,1.01751,3419.5,3419.3,0.29302]
[1735548769305,0.29302,3419.4,3419.2,0.29303]
[1735548769605,0.7245,3419.5,3419.4,0.29301]
[1735548769810,0.7245,3419.5,3418.8,1.8902]
[1735548770001,3.2078,3419.2,3419.1,0.29304]
[1735548770504,4.6609,3419.2,3419.1,0.29304]
[1735548773307,3.2078,3419.2,3419.1,0.29304]
[1735548773703,0.7245,3419.5,3418.8,0.7262]
[1735548774210,0.7245,3419.5,3419.3,0.29301]
[1735548775908,0.7245,3419.5,3418.8,10.83239259]
[1735548776109,0.7245,3419.5,3419.3,0.29301]
[1735548776607,4.6221,3419.6,3419.5,0.29301]
[1735548776909,3.2078,3419.6,3419.5,0.29301]
[1735548780418,0.6603,3419.8,3419.7,0.29299]
[1735548781013,0.6603,3419.8,3419.2,7.60739259]
[1735548781215,0.6603,3419.8,3419.6,0.293]
[1735548783712,0.6603,3419.8,3419.7,0.29299]
[1735548784511,3.43529257,3419.9,3419.8,0.29298]
[1735548786719,3.2078,3420.0,3419.9,0.29297]
[1735548787616,3.2078,3420.0,3419.8,4.73127661]
[1735548787812,0.7034,3419.9,3419.8,4.73127661]
[1735548788117,0.7034,3419.9,3419.8,0.29298]
[1735548788822,1.3605,3419.9,3419.8,0.29298]
[1735548791217,0.6571,3419.9,3419.8,0.29298]
[1735548791421,3.2078,3420.0,3419.9,0.29297]
[1735548792422,3.2078,3420.0,3419.6,6.90498704]
[1735548792714,3.2078,3420.0,3419.8,0.29295]
[1735548792922,3.2078,3420.0,3419.9,0.29294]
[1735548793113,3.2078,3420.0,3419.7,6.90498704]
[1735548793322,3.2078,3420.0,3419.9,0.29294]
[1735548795420,3.00147098,3420.6,3419.9,17.17757376]
[1735548795625,3.00147098,3420.6,3420.5,0.29289]
[1735548796524,3.00147098,3420.6,3420.4,0.29289]
[1735548796823,0.7031,3420.6,3420.5,0.29289]
[1735548798827,3.2078,3420.7,3420.6,0.29288]
[1735548799129,3.2078,3420.7,3420.6,0.94278]
[1735548799323,2.29837098,3420.8,3420.7,0.29287]
[1735548799523,2.29837098,3420.9,3420.8,0.29287]
[1735548801032,0.6721,3421.1,3421.0,0.29285]
[1735548805230,0.96494,3421.1,3420.7,0.29287]
[1735548805531,0.6721,3421.1,3420.7,0.29287]
[1735548806126,0.6721,3421.1,3420.8,0.29286]
[1735548806432,0.6721,3421.1,3420.9,0.29285]
[1735548807128,0.6721,3421.1,3421.0,0.29285]
[1735548807631,0.6721,3421.1,3420.8,0.29286]
[1735548811130,0.6721,3421.1,3420.6,1.163]
[1735548811631,0.29285,3421.0,3420.6,1.45588]
[1735548811934,3.2078,3420.8,3420.4,1.163]
[1735548812134,0.6782,3420.7,3420.4,1.163]
[1735548812428,1.3323,3420.7,3420.6,0.29288]
[1735548814335,1.3323,3420.7,3420.5,0.29289]
[1735548815135,1.3323,3420.7,3420.4,3.5007]
[1735548816637,1.3323,3420.7,3420.4,3.2078]
[1735548816832,1.62518,3420.7,3420.4,3.2078]
[1735548817654,1.62518,3420.7,3420.3,0.29291]
[1735548818137,1.62518,3420.7,3420.4,0.2929]
[1735548818931,1.3323,3420.7,3420.2,1.163]
[1735548819332,1.3323,3420.7,3420.6,0.29288]
[1735548821325,3.2078,3420.8,3420.2,1.8536]
[1735548821326,3.2078,3420.8,3420.7,0.29287]
[1735548822737,3.2078,3420.8,3420.2,5.74866555]
[1735548823431,3.50067,3420.8,3420.5,0.29289]
[1735548823938,3.2078,3420.8,3420.4,0.2929]
[1735548824141,0.29288,3420.7,3420.4,0.2929]
[1735548825733,3.50067,3420.8,3420.5,0.29289]
[1735548826240,3.2078,3420.8,3420.2,1.163]
[1735548826441,3.2078,3420.3,3420.1,4.58566555]
[1735548826640,2.32402,3420.2,3420.1,4.58566555]
[1735548827039,2.0311,3420.2,3420.1,4.58566555]
[1735548827538,2.0311,3420.2,3420.0,0.29293]
[1735548828338,2.0311,3420.2,3419.9,0.29294]
[1735548828339,2.32402,3420.2,3419.9,0.29294]
[1735548828540,2.0311,3420.2,3420.1,0.29293]
[1735548830155,5.2389,3420.2,3420.1,0.29293]
[1735548830841,5.2389,3420.2,3419.9,0.29294]
[1735548831941,5.2389,3420.2,3420.0,0.29293]
[1735548833444,5.2389,3420.2,3419.7,4.58566555]
[1735548833747,5.2389,3420.2,3420.1,0.29293]
[1735548834048,4.5718,3420.2,3420.1,0.29293]
[1735548834641,3.2078,3420.2,3420.1,0.29293]
[1735548835039,0.6872,3420.4,3419.9,0.7348]
[1735548835246,0.6872,3420.4,3420.3,0.29291]
[1735548835843,0.6872,3420.4,3419.9,0.7348]
[1735548836145,0.6872,3420.4,3420.2,0.29292]
[1735548836850,0.6872,3420.4,3419.9,0.7348]
[1735548837149,0.6872,3420.4,3420.3,0.29291]
[1735548839253,3.895,3420.4,3420.3,0.29291]
[1735548839551,3.895,3420.4,3420.2,0.29291]
[1735548839751,4.1879,3420.4,3420.2,0.29291]
[1735548840549,0.29293,3420.1,3420.0,4.59932851]
[1735548840851,3.895,3420.4,3419.9,4.59932851]
[1735548840852,0.29293,3420.0,3419.9,4.59932851]
[1735548841056,1.02103,3420.0,3419.9,4.59932851]
[1735548841549,0.7281,3420.0,3419.9,4.59932851]
[1735548841844,0.7281,3420.0,3419.8,0.29295]
[1735548842046,0.6664,3419.9,3419.8,0.29295]
[1735548842239,2.29490591,3420.3,3419.7,4.59932851]
[1735548842448,0.6664,3420.2,3420.1,0.29292]
[1735548843348,0.6664,3420.2,3420.0,0.29293]
[1735548844651,0.6664,3420.2,3419.9,4.59932851]
[1735548844954,0.6664,3420.2,3420.0,0.29293]
[1735548845253,0.6664,3420.2,3420.1,0.29293]
[1735548847358,0.95932,3420.2,3419.9,4.89225851]
[1735548847663,0.6664,3420.2,3420.1,0.29293]
[1735548847855,0.6664,3420.2,3420.0,0.6976]
[1735548848252,0.6664,3420.2,3420.1,0.29293]
[1735548850853,0.6664,3420.2,3420.1,4.89225851]
[1735548851255,3.2078,3420.4,3420.1,4.59932851]
[1735548851465,3.2078,3420.4,3420.3,0.29291]
[1735548852360,2.29490591,3420.6,3420.5,0.29289]
[1735548852561,2.29490591,3420.6,3420.5,3.79342594]
[1735548853059,3.44235887,3420.7,3420.6,0.29288]
[1735548853262,3.27525887,3420.7,3420.6,5.29288]
[1735548853857,4.58981182,3421.5,3421.2,0.29282]
[1735548854658,4.88262182,3421.5,3421.0,0.29284]
[1735548854857,4.58981182,3421.5,3420.6,2.33753594]
[1735548855065,0.29285,3421.1,3421.0,6.89940575]
[1735548855959,0.29285,3421.1,3421.0,4.72020575]
[1735548856555,0.29287,3420.8,3420.7,4.60043099]
[1735548856756,3.50067,3420.8,3420.7,4.60043099]
[1735548857961,3.50067,3420.8,3420.7,2.42143099]
[1735548858261,0.2929,3420.4,3420.3,2.42143099]
[1735548858462,3.5007,3420.4,3420.3,2.42143099]
[1735548859264,3.5007,3420.4,3420.1,0.29292]
[1735548859464,0.6569,3420.3,3420.1,0.29292]
[1735548860068,0.6569,3420.3,3420.2,0.29292]
[1735548864263,0.6569,3420.3,3420.1,0.29292]
[1735548866365,0.6569,3420.3,3420.0,0.29293]
[1735548866670,0.6569,3420.3,3420.1,0.29292]
[1735548866967,0.6569,3420.3,3420.0,0.29293]
[1735548867170,0.6569,3420.3,3420.1,0.29292]
[1735548867370,0.6569,3420.3,3420.2,0.29292]
[1735548867677,4.84247,3420.8,3420.0,5.54533594]
[1735548867870,0.717,3420.7,3420.5,0.29289]
[1735548868572,0.29288,3420.6,3420.3,0.2929]
[1735548868767,3.2078,3420.4,3420.2,0.96691]
[1735548869571,3.2078,3420.4,3420.3,0.29291]
[1735548869965,3.2078,3420.4,3419.9,9.19865703]
[1735548870182,0.29291,3420.3,3419.9,9.19865703]
[1735548870372,3.50073,3420.0,3419.9,9.19865703]
[1735548870870,3.50073,3420.0,3419.7,10.58255703]
[1735548871368,0.6906,3420.1,3419.7,10.87550703]
[1735548871873,1.3726,3420.2,3419.8,0.29295]
[1735548872075,1.3726,3420.2,3420.0,0.29293]
[1735548872376,3.2078,3420.4,3420.2,0.29291]
[1735548872570,3.2078,3420.4,3420.3,0.29291]
[1735548872876,3.2078,3420.4,3420.1,0.29292]
[1735548873069,3.5007,3420.4,3420.1,0.29292]
[1735548874276,3.2078,3420.4,3419.7,12.92009297]
[1735548874472,3.2078,3420.4,3420.2,0.29292]
[1735548874979,3.2078,3420.4,3420.3,0.29291]
[1735548877481,3.2078,3420.4,3420.3,0.98581]
[1735548878980,3.2078,3420.4,3420.3,0.6929]
[1735548879478,3.50071,3420.4,3420.1,1.162]
[1735548880988,3.50071,3420.4,3420.1,1.45492]
[1735548881176,0.29291,3420.3,3420.1,1.162]
[1735548881577,0.677,3420.2,3420.1,1.162]
[1735548881776,0.677,3420.2,3420.1,1.45493]
[1735548883984,0.677,3420.2,3420.1,6.13822072]
[1735548884280,3.2078,3420.4,3420.1,5.84529072]
[1735548884584,3.2078,3420.4,3420.3,0.29291]
[1735548885472,3.2078,3420.4,3420.1,1.162]
[1735548885678,3.5007,3420.4,3420.1,1.45492]
[1735548885983,0.29292,3420.2,3420.1,1.162]
[1735548886372,0.29291,3420.3,3420.1,1.45493]
[1735548887675,0.708,3420.2,3420.1,1.45493]
[1735548889487,0.708,3420.2,3420.1,1.162]
[1735548889782,1.00092,3420.2,3420.1,1.162]
[1735548890479,3.2078,3420.4,3420.2,0.29291]
[1735548890686,3.2078,3420.4,3420.3,0.29291]
[1735548891276,3.2078,3420.4,3420.3,0.99401]
[1735548892486,3.2078,3420.4,3420.3,5.67723331]
[1735548893886,3.2078,3420.4,3420.3,4.97613331]
[1735548894980,0.6549,3420.6,3420.5,0.29289]
[1735548896279,3.2078,3420.8,3420.4,0.7237]
[1735548896479,3.2078,3420.8,3420.7,0.29287]
[1735548899179,3.2078,3420.8,3420.6,0.6691]
[1735548899180,0.676,3420.9,3420.8,0.29287]
[1735548899787,0.6797,3421.1,3420.9,0.29285]
[1735548900086,1.3455,3421.1,3420.9,0.29285]
[1735548900490,1.3455,3421.1,3420.6,0.6691]
[1735548900787,1.3455,3421.1,3420.8,0.29286]
[1735548901686,1.3455,3421.1,3420.9,1.162]
[1735548901987,1.3455,3421.1,3420.9,1.45486]
[1735548903983,1.3455,3421.1,3420.9,1.162]
[1735548904186,1.63834,3421.1,3420.9,1.162]
[1735548906290,0.29285,3421.0,3420.9,1.162]
[1735548906794,1.3455,3421.1,3420.9,1.162]
[1735548906984,1.63834,3421.1,3420.9,1.162]
[1735548907291,1.63834,3421.1,3420.9,1.45485]
[1735548907487,1.3455,3421.1,3421.0,0.29285]
[1735548908190,1.63834,3421.1,3420.9,1.45485]
[1735548908494,1.63834,3421.1,3421.0,0.29285]
[1735548910493,1.3455,3421.1,3421.0,0.29285]
[1735548912987,1.3455,3421.1,3421.0,0.99525]
[1735548914996,6.64938372,3421.6,3421.0,0.99525]
[1735548914997,6.64938372,3421.6,3421.0,0.7024]
[1735548915294,1.3037,3421.5,3421.3,0.29282]
[1735548916997,1.3037,3421.5,3421.4,0.29281]
[1735548918595,3.44158372,3421.8,3421.4,3.50061]
[1735548918801,4.13198372,3421.8,3421.4,3.2078]
[1735548918993,3.44158372,3421.9,3421.6,2.33753594]
[1735548919199,3.44158372,3421.9,3421.8,0.29278]
[1735548920898,0.6878,3422.4,3421.7,1.8192]
[1735548921200,0.6383,3422.4,3422.3,0.29274]
[1735548921798,0.6383,3422.4,3421.9,3.2078]
[1735548921995,3.2078,3422.2,3421.8,1.162]
[1735548922201,0.6453,3422.1,3421.8,1.162]
[1735548922404,0.93917,3422.0,3421.8,1.162]
[1735548923102,0.93916,3422.0,3421.8,1.45478]
[1735548924104,0.93916,3422.0,3421.8,1.162]
[1735548925001,0.6332,3421.9,3421.8,1.162]
[1735548925803,0.6332,3421.9,3421.8,1.45478]
[1735548926803,0.6332,3421.9,3421.8,1.162]
[1735548927411,3.2078,3422.2,3421.8,1.162]
[1735548927412,3.2078,3422.2,3422.1,0.29275]
[1735548928002,3.44158372,3422.4,3422.1,0.29275]
[1735548928003,3.44158372,3422.4,3422.3,0.29274]
[1735548928207,3.44158372,3422.4,3422.3,3.50054]
[1735548928805,3.44158372,3422.4,3422.3,4.16714]
[1735548929003,7.34328372,3422.9,3422.8,0.29269]
[1735548929409,7.34328372,3422.9,3422.7,1.4547]
[1735548930708,3.9017,3422.9,3422.7,1.4547]
[1735548930909,7.31108372,3423.4,3422.7,1.162]
[1735548931110,0.6741,3423.3,3422.9,0.29269]